fUSD/lending_fUSD_20251012
["ID","MTS","AMOUNT","RATE_DAILY","PERIOD"]
[391008075,1760286506372,221.35335311,0.0001,2]
[391008103,1760286566703,151.0,0.00027397,120]
[391008111,1760286631977,-539.89444777,0.00013254,2]
[391008113,1760286631988,-211.43740601,0.00013496,2]
[391008115,1760286631997,-1991.59859926,0.00013512,2]
[391008117,1760286632008,-548.43,0.00013612,2]
[391008119,1760286632017,-200.0,0.00013699,2]
[391008120,1760286632026,-1852.42,0.00013713,2]
[391008121,1760286632035,-1586.21,0.0001375,2]
[391008122,1760286632044,-202.82954696,0.00013766,2]
[391008123,1760286632066,-944.04045304,0.00013766,2]
[391008124,1760286632077,-1200.0,0.00013813,2]
[391008125,1760286632086,-150.0,0.00013814,2]
[391008126,1760286632095,-300.0,0.00013851,2]
[391008127,1760286632104,-300.0,0.00013851,2]
[391008128,1760286632114,-150.0,0.00013851,2]
[391008129,1760286632124,-2493.6908647,0.00013852,2]
[391008130,1760286632148,-4942.3348208,0.00013852,2]
[391008131,1760286632163,-2563.9643145,0.00013852,2]
[391008132,1760286632172,-406.08,0.00013852,2]
[391008133,1760286632182,-2556.72831727,0.00013852,2]
[391008134,1760286632282,-7443.26168273,0.00013852,2]
[391008135,1760286632291,-150.99,0.00013852,2]
[391008136,1760286632301,-2930.34,0.00013852,2]
[391008137,1760286632310,-1290.14,0.00013852,2]
[391008138,1760286632319,-2074.66,0.00013852,2]
[391008139,1760286632328,-3802.15,0.00013852,2]
[391008140,1760286632337,-312.48,0.00013852,2]
[391008141,1760286632347,-1162.46,0.00013852,2]
[391008142,1760286632356,-150.99,0.00013852,2]
[391008143,1760286632365,-2054.60753945,0.00013852,2]
[391008144,1760286632376,-1480.66885448,0.00013852,2]
[391008145,1760286632395,-253.97360607,0.00013852,2]
[391008146,1760286632404,-13113.91,0.00013852,2]
[391008147,1760286632413,-3547.82993017,0.00013852,2]
[391008148,1760286632423,-999.99,0.00013853,2]
[391008149,1760286632432,-9999.99,0.00013853,2]
[391008150,1760286632442,-6925.83,0.00013853,2]
[391008151,1760286632451,-3294.69,0.00013853,2]
[391008152,1760286632462,-88.0,0.00013872,7]
[391008153,1760286632471,-500.0,0.000142,5]
[391008154,1760286632481,-220.30024418,0.00014229,2]
[391008155,1760286632490,-1100.0,0.000143,5]
[391008156,1760286632499,-1600.0,0.000144,5]
[391008157,1760286632510,-154.35,0.00014421,2]
[391008158,1760286632519,-168.0,0.00014421,2]
[391008159,1760286632529,-168.0,0.0001448,2]
[391008160,1760286632539,-9211.34798985,0.00014491,2]
[391008161,1760286632548,-621.78829552,0.00014491,2]
[391008162,1760286632558,-151.0,0.00014491,2]
[391008163,1760286632567,-267.46074303,0.00014491,2]
[391008164,1760286632577,-2200.0,0.000145,5]
[391008165,1760286632587,-166.66,0.0001454,2]
[391008167,1760286632596,-9552.16786547,0.00014546,2]
[391008194,1760286632981,-190.1183354,0.00014579,2]
[391008195,1760286633007,-195.0,0.00014579,2]
[391008196,1760286633016,-195.0,0.00014579,2]
[391008197,1760286633026,-250.0,0.00014579,2]
[391008198,1760286633035,-278.4699,0.000146,2]
[391008199,1760286633045,-155.67060646,0.000146,2]
[391008200,1760286633054,-2800.0,0.000146,5]
[391008201,1760286633063,-9905.5980765,0.00014601,2]
[391008202,1760286633072,-10272.10520533,0.00014656,2]
[391008203,1760286633082,-889.40219332,0.00014674,2]
[391008204,1760286633092,-408.62,0.00014681,2]
[391008205,1760286633101,-1821.41035733,0.00014681,2]
[391008206,1760286633110,-151.0,0.00014691,2]
[391008207,1760286633119,-151.0,0.00014691,2]
[391008208,1760286633128,-151.0,0.00014691,2]
[391008209,1760286633143,-151.0,0.00014691,2]
[391008210,1760286633153,-200.0,0.00014691,2]
[391008211,1760286633162,-151.0,0.00014691,2]
[391008212,1760286633171,-151.0,0.00014691,2]
[391008213,1760286633181,-1000.0,0.00014691,2]
[391008214,1760286633191,-151.0,0.00014691,2]
[391008215,1760286633201,-151.0,0.00014691,2]
[391008216,1760286633211,-151.0,0.00014691,2]
[391008217,1760286633222,-1000.0,0.00014691,2]
[391008218,1760286633231,-151.0,0.00014691,2]
[391008219,1760286633241,-151.0,0.00014691,2]
[391008220,1760286633251,-1000.0,0.00014691,2]
[391008221,1760286633262,-151.0,0.00014691,2]
[391008222,1760286633272,-151.0,0.00014691,2]
[391008223,1760286633282,-1000.0,0.00014691,2]
[391008224,1760286633291,-151.0,0.00014691,2]
[391008225,1760286633301,-151.0,0.00014691,2]
[391008226,1760286633310,-1000.0,0.00014691,2]
[391008227,1760286633319,-151.0,0.00014691,2]
[391008228,1760286633329,-151.0,0.00014691,2]
[391008229,1760286633338,-1000.0,0.00014691,2]
[391008230,1760286633348,-151.0,0.00014691,2]
[391008231,1760286633359,-151.0,0.00014691,2]
[391008232,1760286633368,-1000.0,0.00014691,2]
[391008233,1760286633378,-151.0,0.00014691,2]
[391008234,1760286633388,-151.0,0.00014691,2]
[391008235,1760286633398,-1000.0,0.00014691,2]
[391008236,1760286633407,-151.0,0.00014691,2]
[391008237,1760286633416,-151.0,0.00014691,2]
[391008238,1760286633426,-1000.0,0.00014691,2]
[391008239,1760286633435,-151.0,0.00014691,2]
[391008240,1760286633444,-151.0,0.00014691,2]
[391008241,1760286633454,-1000.0,0.00014691,2]
[391008242,1760286633464,-151.0,0.00014691,2]
[391008243,1760286633473,-151.0,0.00014691,2]
[391008244,1760286633483,-1000.0,0.00014691,2]
[391008245,1760286633493,-151.0,0.00014691,2]
[391008246,1760286633503,-151.0,0.00014691,2]
[391008247,1760286633513,-1000.0,0.00014691,2]
[391008248,1760286633522,-151.0,0.00014691,2]
[391008249,1760286633532,-151.0,0.00014691,2]
[391008250,1760286633542,-151.0,0.00014691,2]
[391008251,1760286633551,-1000.0,0.00014691,2]
[391008252,1760286633562,-151.0,0.00014691,2]
[391008253,1760286633572,-161.82273524,0.00014691,2]
[391008254,1760286633581,-151.0,0.00014691,2]
[391008255,1760286633591,-1000.0,0.00014691,2]
[391008256,1760286633600,-151.0,0.00014691,2]
[391008257,1760286633609,-1000.0,0.00014691,2]
[391008258,1760286633619,-151.0,0.00014691,2]
[391008259,1760286633628,-1000.0,0.00014691,2]
[391008260,1760286633639,-151.0,0.00014691,2]
[391008261,1760286633648,-1000.0,0.00014691,2]
[391008262,1760286633657,-151.0,0.00014691,2]
[391008263,1760286633667,-1000.0,0.00014691,2]
[391008264,1760286633677,-500.0,0.00014691,2]
[391008265,1760286633686,-151.0,0.00014691,2]
[391008266,1760286633696,-1000.0,0.00014691,2]
[391008267,1760286633705,-500.0,0.00014691,2]
[391008268,1760286633714,-151.0,0.00014691,2]
[391008269,1760286633723,-1000.0,0.00014691,2]
[391008270,1760286633732,-500.0,0.00014691,2]
[391008271,1760286633741,-151.0,0.00014691,2]
[391008272,1760286633750,-1000.0,0.00014691,2]
[391008273,1760286633761,-404.22581024,0.00014691,2]
[391008274,1760286633770,-151.0,0.00014691,2]
[391008275,1760286633780,-1000.0,0.00014691,2]
[391008276,1760286633789,-151.0,0.00014691,2]
[391008277,1760286633799,-1000.0,0.00014691,2]
[391008278,1760286633808,-322.6107,0.00014691,2]
[391008279,1760286633817,-151.0,0.00014691,2]
[391008280,1760286633826,-1000.0,0.00014691,2]
[391008281,1760286633836,-151.0,0.00014691,2]
[391008282,1760286633846,-500.0,0.00014691,2]
[391008283,1760286633855,-151.0,0.00014691,2]
[391008284,1760286633864,-500.0,0.00014691,2]
[391008285,1760286633874,-211.37193692,0.00014691,2]
[391008286,1760286633883,-200.0,0.00014691,2]
[391008287,1760286633892,-200.0,0.00014691,2]
[391008288,1760286633904,-500.0,0.00014691,2]
[391008289,1760286633916,-500.0,0.00014691,2]
[391008290,1760286633926,-500.0,0.00014691,2]
[391008291,1760286633935,-500.0,0.00014691,2]
[391008292,1760286633945,-695.39793187,0.00014691,2]
[391008293,1760286633954,-500.0,0.00014691,2]
[391008294,1760286633964,-500.0,0.00014691,2]
[391008295,1760286633973,-500.0,0.00014691,2]
[391008296,1760286633983,-500.0,0.00014691,2]
[391008297,1760286633994,-500.0,0.00014691,2]
[391008298,1760286634003,-500.0,0.00014691,2]
[391008299,1760286634012,-500.0,0.00014691,2]
[391008300,1760286634021,-500.0,0.00014691,2]
[391008301,1760286634031,-500.0,0.00014691,2]
[391008302,1760286634040,-500.0,0.00014691,2]
[391008303,1760286634049,-500.0,0.00014691,2]
[391008304,1760286634059,-500.0,0.00014691,2]
[391008305,1760286634069,-500.0,0.00014691,2]
[391008306,1760286634078,-500.0,0.00014691,2]
[391008307,1760286634088,-502.58442916,0.00014691,2]
[391008308,1760286634097,-500.0,0.00014691,2]
[391008309,1760286634107,-500.0,0.00014691,2]
[391008310,1760286634116,-500.0,0.00014691,2]
[391008311,1760286634125,-500.0,0.00014691,2]
[391008312,1760286634134,-500.0,0.00014691,2]
[391008313,1760286634148,-500.0,0.00014691,2]
[391008314,1760286634157,-500.0,0.00014691,2]
[391008315,1760286634167,-500.0,0.00014691,2]
[391008316,1760286634175,-497.27021381,0.00014691,2]
[391008317,1760286634190,-2.72978619,0.00014691,2]
[391008318,1760286634199,-500.0,0.00014691,2]
[391008319,1760286634208,-500.0,0.00014691,2]
[391008320,1760286634219,-500.0,0.00014691,2]
[391008321,1760286634229,-500.0,0.00014691,2]
[391008322,1760286634239,-500.0,0.00014691,2]
[391008323,1760286634248,-500.0,0.00014691,2]
[391008324,1760286634259,-500.0,0.00014691,2]
[391008325,1760286634268,-500.0,0.00014691,2]
[391008326,1760286634277,-500.0,0.00014691,2]
[391008327,1760286634286,-500.0,0.00014691,2]
[391008328,1760286634295,-500.0,0.00014691,2]
[391008329,1760286634304,-500.0,0.00014691,2]
[391008330,1760286634314,-500.0,0.00014691,2]
[391008331,1760286634323,-500.0,0.00014691,2]
[391008332,1760286634332,-500.0,0.000147,5]
[391008333,1760286634341,-804.0,0.00014709,2]
[391008334,1760286634350,-10652.17309792,0.00014711,2]
[391008335,1760286634360,-5476.33293089,0.00014712,2]
[391008336,1760286634369,-5476.33293089,0.00014736,2]
[391008337,1760286634379,-155.67060644,0.00014745,2]
[391008338,1760286634388,-408.62,0.00014756,2]
[391008339,1760286634398,-2726.24,0.00014756,2]
[391008340,1760286634407,-5476.33293089,0.00014759,2]
[391008341,1760286634416,-11046.30350255,0.00014766,2]
[391008342,1760286634426,-5476.33293089,0.00014783,2]
[391008343,1760286634435,-2095.77,0.00014788,2]
[391008344,1760286634445,-7378.06829099,0.0001479,2]
[391008345,1760286634454,-7095.65986035,0.00014791,2]
[391008346,1760286634464,-200.0,0.00014792,2]
[391008347,1760286634473,-408.62,0.00014792,2]
[391008348,1760286634482,-804.0,0.00014793,2]
[391008349,1760286634492,-1000.0,0.00014793,2]
[391008350,1760286634501,-18378.9647,0.00014798,2]
[391008351,1760286634511,-181.49660456,0.00014799,2]
[391008352,1760286634521,-500.0,0.000148,5]
[391008353,1760286634531,-7378.06829096,0.00014802,2]
[391008354,1760286634540,-804.0,0.00014806,2]
[391008355,1760286634550,-5476.33293089,0.00014806,2]
[391008356,1760286634559,-181.49660448,0.0001481,2]
[391008357,1760286634569,-7378.06829096,0.00014814,2]
[391008358,1760286634579,-558.65545669,0.00014814,2]
[391008359,1760286634589,-11455.01673214,0.00014821,2]
[391008360,1760286634601,-181.49660448,0.00014821,2]
[391008361,1760286634610,-7378.06829096,0.00014827,2]
[391008362,1760286634620,-408.62,0.00014829,2]
[391008363,1760286634629,-5476.33293089,0.0001483,2]
[391008364,1760286634638,-181.49660448,0.00014833,2]
[391008365,1760286634647,-7378.06829096,0.00014839,2]
[391008366,1760286634656,-804.0,0.0001484,2]
[391008367,1760286634665,-181.49660448,0.00014844,2]
[391008368,1760286634675,-915.76601,0.0001485,2]
[391008369,1760286634684,-7378.06829096,0.00014851,2]
[391008370,1760286634693,-5476.33293089,0.00014853,2]
[391008371,1760286634702,-181.49660448,0.00014855,2]
[391008372,1760286634711,-7378.06829096,0.00014863,2]
[391008373,1760286634720,-181.49660448,0.00014866,2]
[391008374,1760286634729,-408.62,0.0001487,2]
[391008375,1760286634739,-2000.0,0.00014871,2]
[391008376,1760286634748,-7378.06829096,0.00014876,2]
[391008377,1760286634758,-6609.23873123,0.00014876,2]
[391008378,1760286634767,-5476.33293089,0.00014877,2]
[391008379,1760286634776,-181.49660448,0.00014878,2]
[391008380,1760286634786,-200.0,0.00014879,2]
[391008381,1760286634795,-9954.3894,0.0001488,2]
[391008382,1760286634804,-422.8161,0.0001488,2]
[391008383,1760286634815,-200.0,0.0001488,2]
[391008384,1760286634824,-5000.0,0.0001488,2]
[391008385,1760286634833,-7378.06829096,0.00014888,2]
[391008386,1760286634842,-181.49660448,0.00014889,2]
[391008387,1760286634852,-738.0,0.0001489,2]
[391008388,1760286634861,-3885.26820747,0.00014899,2]
[391008389,1760286634871,-422.35372288,0.000149,2]
[391008390,1760286634880,-5476.33293089,0.000149,2]
[391008391,1760286634889,-150.21294532,0.000149,2]
[391008392,1760286634898,-500.0,0.000149,5]
[391008393,1760286634907,-181.49660448,0.000149,2]
[391008394,1760286634916,-838.34690138,0.000149,2]
[391008395,1760286634925,-41.03089421,0.000149,2]
[391008396,1760286634954,-114.63971223,0.000149,2]
[391008397,1760286634963,-6079.32723691,0.000149,2]
[391008398,1760286634976,-1298.74105405,0.000149,2]
[391008399,1760286634987,-1519.00304055,0.00014901,2]
[391008400,1760286634997,-1519.00304054,0.00014908,2]
[391008401,1760286635009,-705.0190234,0.00014919,2]
[391008402,1760286635020,-98.9809766,0.00014919,2]
[391008403,1760286635030,-1519.00304055,0.0001492,2]
[391008404,1760286635039,-488.40816832,0.00014959,2]
[391008405,1760286637877,-156.6228873,0.00014706,2]
[391008406,1760286637888,-156.62288729,0.000149,2]
[391008407,1760286637900,-1030.59487223,0.00014959,2]
[391008408,1760286637911,-1519.00304054,0.0001496,2]
[391008409,1760286637925,-5960.48338221,0.00014962,2]
[391008410,1760286637935,-1519.00304054,0.00014967,2]
[391008411,1760286637945,-500.0,0.00014973,2]
[391008412,1760286637954,-503.36352202,0.00014973,2]
[391008413,1760286637963,-461.00697767,0.00014973,2]
[391008414,1760286637973,-500.0,0.00014973,2]
[391008415,1760286637983,-500.0,0.00014973,2]
[391008416,1760286637994,-500.0,0.00014973,2]
[391008417,1760286638004,-255.0,0.00014973,2]
[391008418,1760286638016,-804.0,0.00014977,2]
[391008419,1760286638025,-179.490098,0.00014979,2]
[391008420,1760286638035,-580.74014147,0.00014979,2]
[391008421,1760286638044,-584.35839989,0.00014979,2]
[391008422,1760286638056,-150.0,0.00014979,2]
[391008423,1760286638066,-444.381,0.0001498,2]
[391008424,1760286638075,-40024.47097443,0.0001498,2]
[391008425,1760286638087,-102635.03963875,0.0001498,2]
[391008426,1760286638106,-2629.97761171,0.0001498,2]
[391008427,1760286638118,-17416.44516732,0.0001498,2]
[391008428,1760286638130,-5793.43,0.0001498,2]
[391008429,1760286638146,-27649.73480184,0.0001498,2]
[391008430,1760286638169,-374.795032,0.0001498,2]
[391008431,1760286638182,-26313.80279988,0.0001498,2]
[391008432,1760286638192,-500.0,0.0001498,2]
[391008433,1760286638202,-150.0,0.0001498,2]
[391008434,1760286638211,-150.0,0.0001498,2]
[391008435,1760286638224,-915.76601,0.0001498,2]
[391008436,1760286638233,-150.0,0.0001498,2]
[391008437,1760286638242,-150.0,0.0001498,2]
[391008438,1760286638252,-150.0,0.0001498,2]
[391008440,1760286638266,-150.0,0.0001498,2]
[391008442,1760286638275,-150.0,0.0001498,2]
[391008444,1760286638284,-150.0,0.0001498,2]
[391008446,1760286638294,-202.32940799,0.0001498,2]
[391008448,1760286638304,-500.0,0.0001498,2]
[391008450,1760286638313,-500.0,0.0001498,2]
[391008452,1760286638322,-500.0,0.0001498,2]
[391008454,1760286638331,-150.0,0.0001498,2]
[391008456,1760286638341,-4121.0,0.00014984,2]
[391008458,1760286638352,-1233.0,0.00014987,2]
[391008460,1760286638361,-1233.0,0.00014987,2]
[391008462,1760286638371,-1233.0,0.00014987,2]
[391008464,1760286638380,-1233.0,0.00014987,2]
[391008466,1760286638392,-1233.0,0.00014987,2]
[391008468,1760286638402,-1233.0,0.00014987,2]
[391008470,1760286638412,-1233.0,0.00014987,2]
[391008472,1760286638421,-1233.0,0.00014987,2]
[391008474,1760286638431,-1233.0,0.00014987,2]
[391008475,1760286638440,-1233.0,0.00014987,2]
[391008478,1760286638451,-734.53224361,0.00014987,2]
[391008480,1760286638461,-6045.11455361,0.00014991,2]
[391008482,1760286638475,-121510.0,0.00014991,2]
[391008484,1760286638487,-609.33,0.00014991,2]
[391008627,1760286639960,-395.472,0.00014991,2]
[391008634,1760286640027,-2090.40897658,0.00014991,2]
[391008635,1760286640039,-900.0,0.00014991,2]
[391008636,1760286640089,-4987.3296,0.00014991,2]
[391008637,1760286640101,-636.0425114,0.00014991,2]
[391008642,1760286640158,-4033.6906338,0.00014991,2]
[391008644,1760286640170,-7092.86162411,0.00014991,2]
[391008646,1760286640184,-819.86034757,0.00014991,2]
[391008649,1760286640197,-43710.42204295,0.00014991,2]
[391008651,1760286640207,-1000.0,0.00014999,2]
[391008653,1760286640218,-1000.0,0.00014999,2]
[391008655,1760286640229,-1000.0,0.00014999,2]
[391008657,1760286640239,-1000.0,0.00014999,2]
[391008658,1760286640249,-7850.92795456,0.00015,2]
[391008661,1760286640260,-305.0000025,0.00015,2]
[391008663,1760286640276,-3650.62585705,0.00015,2]
[391008665,1760286640287,-2988.93535884,0.00015,2]
[391008668,1760286640303,-331.39694997,0.00015,2]
[391008980,1760286643116,-608.41110405,0.00015,2]
[391008985,1760286643156,-577.39124148,0.00015,2]
[391008992,1760286643221,-1307.19902,0.00015,2]
[391008994,1760286643233,-761.8464111,0.00015,2]
[391009000,1760286643284,-764.42476097,0.00015,2]
[391009128,1760286646072,-322.86243433,0.00015,2]
[391009130,1760286646083,-13267.545346,0.00015,2]
[391009131,1760286646094,-15415.9811785,0.00015,2]
[391009132,1760286646105,-872.82972312,0.00015,2]
[391009133,1760286646115,-1759.0,0.00015,2]
[391009134,1760286646126,-611.95114755,0.00015,2]
[391009136,1760286646146,-57025.0,0.00015,2]
[391009141,1760286646203,-36210.32696247,0.00015,2]
[391009142,1760286646215,-357203.27854028,0.00015,2]
[391009143,1760286646237,-658.15790404,0.00015,2]
[391009144,1760286646250,-2424.32442,0.00015,2]
[391009145,1760286646267,-35729.19838756,0.00015,2]
[391009146,1760286646279,-253.52,0.00015,2]
[391009147,1760286646330,-2324.29556668,0.00015,2]
[391009148,1760286646374,-2800.1549521,0.00015,2]
[391009149,1760286646386,-962.47647026,0.00015,2]
[391009150,1760286646900,-17089.5,0.00015,2]
[391009151,1760286646916,-933.14790751,0.00015,2]
[391009152,1760286646929,-1655.84940623,0.00015,2]
[391009153,1760286646947,-570.0,0.00015,2]
[391009165,1760286996136,155.0,0.00012503,2]
[391009169,1760287458251,3150.5824753,0.00027397,120]
[391009190,1760287832102,-302.61183806,0.00013434,2]
[391009197,1760287832149,-118.99816194,0.00013434,2]
[391009199,1760287832158,-395.27692948,0.00013507,2]
[391009201,1760287832170,-31.14307052,0.00013507,2]
[391009203,1760287832179,-150.0,0.00013649,2]
[391009205,1760287832189,-468.26,0.00013699,2]
[391009207,1760287832199,-257.22329934,0.0001373,2]
[391009208,1760287832208,-150.0,0.00013762,2]
[391009209,1760287832222,-300.0,0.00013828,2]
[391009210,1760287832231,-430.00750514,0.00013828,2]
[391009211,1760287832276,-769.99249486,0.00013828,2]
[391009212,1760287832287,-3366.19372103,0.00013829,2]
[391009213,1760287832297,-14780.45,0.00013829,2]
[391009214,1760287832307,-2728.28,0.00013861,2]
[391009215,1760287832317,-1078.22,0.00013874,2]
[391009216,1760287832326,-150.0,0.000139,2]
[391009217,1760287832336,-18470.80392415,0.00013901,2]
[391009218,1760287832348,-824.38783658,0.00013901,2]
[391009219,1760287832510,-1603.86711658,0.00013901,2]
[391009220,1760287832584,-19412.87087626,0.00013901,2]
[391009221,1760287832597,-36327.16677509,0.00013901,2]
[391009244,1760287838584,-1255.84358417,0.00013901,2]
[391009246,1760287838595,-319.35047,0.00013901,2]
[391009248,1760287838610,-456.9681117,0.00013901,2]
[391009251,1760287838622,-12713.21130547,0.00013901,2]
[391009252,1760287838631,-666.0,0.00013903,3]
[391009254,1760287838640,-1663.0,0.00013903,2]
[391009256,1760287838650,-9999.99,0.00013903,2]
[391009258,1760287838659,-999.99,0.00013903,2]
[391009260,1760287838668,-150.99,0.00013903,2]
[391009262,1760287838679,-150.99,0.00013903,2]
[391009264,1760287838689,-9999.99,0.00013903,2]
[391009266,1760287838699,-250.0,0.00013925,2]
[391009268,1760287838708,-3000.0,0.00014,2]
[391009270,1760287838719,-500.0,0.00014038,2]
[391009272,1760287838735,-200.87,0.00014145,2]
[391009274,1760287838745,-1863.87054692,0.00014241,2]
[391009276,1760287838755,-605.43038604,0.00014241,2]
[391009278,1760287838766,-151.0,0.00014241,2]
[391009280,1760287838776,-151.0,0.00014241,2]
[391009282,1760287838787,-151.0,0.00014241,2]
[391009284,1760287838797,-198.0,0.00014241,2]
[391009286,1760287838807,-267.46074303,0.00014241,2]
[391009288,1760287838818,-168.0,0.00014428,2]
[391009290,1760287838828,-168.0,0.0001456,2]
[391009292,1760287838838,-500.0,0.00014686,2]
[391009294,1760287838848,-500.0,0.00014686,2]
[391009296,1760287838858,-500.0,0.00014686,2]
[391009298,1760287838868,-500.0,0.00014686,2]
[391009300,1760287838879,-500.0,0.00014686,2]
[391009302,1760287838888,-590.783361,0.00014686,2]
[391009304,1760287838903,-500.0,0.00014686,2]
[391009306,1760287838912,-500.0,0.00014686,2]
[391009308,1760287838924,-500.0,0.00014686,2]
[391009310,1760287838935,-500.0,0.00014686,2]
[391009312,1760287838944,-500.0,0.00014686,2]
[391009314,1760287838955,-500.0,0.00014686,2]
[391009315,1760287838965,-500.0,0.00014686,2]
[391009316,1760287838979,-500.0,0.00014686,2]
[391009317,1760287838990,-281.42365754,0.00014686,2]
[391009318,1760287839003,-218.57634246,0.00014686,2]
[391009319,1760287839014,-500.0,0.00014686,2]
[391009320,1760287839024,-500.0,0.00014686,2]
[391009321,1760287839034,-500.0,0.00014686,2]
[391009322,1760287839044,-500.0,0.00014686,2]
[391009323,1760287839055,-500.0,0.00014686,2]
[391009324,1760287839065,-213.62365754,0.00014686,2]
[391009325,1760287839246,-286.37634246,0.00014686,2]
[391009326,1760287839256,-500.0,0.00014686,2]
[391009327,1760287839267,-500.0,0.00014686,2]
[391009328,1760287839277,-500.0,0.00014686,2]
[391009329,1760287839288,-500.0,0.00014686,2]
[391009330,1760287839298,-573.23040754,0.00014689,2]
[391009331,1760287839324,-426.76959246,0.00014689,2]
[391009332,1760287839334,-1000.0,0.00014689,2]
[391009333,1760287839343,-500.0,0.00014689,2]
[391009334,1760287839353,-1000.0,0.00014689,2]
[391009335,1760287839362,-500.0,0.00014689,2]
[391009336,1760287839372,-500.0,0.00014689,2]
[391009337,1760287839383,-500.0,0.00014689,2]
[391009338,1760287839392,-151.0,0.00014689,2]
[391009339,1760287839403,-500.0,0.00014689,2]
[391009340,1760287839413,-500.0,0.00014689,2]
[391009341,1760287839422,-1000.0,0.00014689,2]
[391009342,1760287839432,-500.0,0.00014689,2]
[391009343,1760287839441,-500.0,0.00014689,2]
[391009344,1760287839451,-1000.0,0.00014689,2]
[391009345,1760287839461,-350.46420048,0.00014689,2]
[391009346,1760287839471,-500.0,0.00014689,2]
[391009347,1760287839486,-1000.0,0.00014689,2]
[391009348,1760287839495,-500.0,0.00014689,2]
[391009349,1760287839508,-1000.0,0.00014689,2]
[391009350,1760287839519,-500.0,0.00014689,2]
[391009351,1760287839528,-1000.0,0.00014689,2]
[391009352,1760287839538,-200.0,0.00014689,2]
[391009353,1760287839548,-200.0,0.00014689,2]
[391009354,1760287839558,-500.0,0.00014689,2]
[391009355,1760287839567,-1000.0,0.00014689,2]
[391009356,1760287839579,-500.0,0.00014689,2]
[391009357,1760287839587,-1000.0,0.00014689,2]
[391009358,1760287839597,-500.0,0.00014689,2]
[391009359,1760287839606,-1000.0,0.00014689,2]
[391009360,1760287839615,-500.0,0.00014689,2]
[391009361,1760287839626,-1000.0,0.00014689,2]
[391009362,1760287839635,-500.0,0.00014689,2]
[391009363,1760287839645,-1000.0,0.00014689,2]
[391009364,1760287839655,-500.0,0.00014689,2]
[391009365,1760287839665,-1000.0,0.00014689,2]
[391009366,1760287839680,-1000.0,0.00014689,2]
[391009367,1760287839690,-1000.0,0.00014689,2]
[391009368,1760287839699,-1000.0,0.00014689,2]
[391009369,1760287839709,-1000.0,0.00014689,2]
[391009370,1760287839719,-1000.0,0.00014689,2]
[391009371,1760287839732,-1000.0,0.00014689,2]
[391009372,1760287839742,-500.0,0.00014689,2]
[391009373,1760287839752,-1000.0,0.00014689,2]
[391009374,1760287839762,-500.0,0.00014689,2]
[391009375,1760287839773,-603.74108164,0.00014689,2]
[391009376,1760287839782,-500.0,0.00014689,2]
[391009377,1760287839792,-500.0,0.00014689,2]
[391009378,1760287839801,-500.0,0.00014689,2]
[391009379,1760287839811,-500.0,0.00014689,2]
[391009380,1760287839820,-500.0,0.00014689,2]
[391009381,1760287839829,-500.0,0.00014689,2]
[391009382,1760287839838,-151.0,0.00014689,2]
[391009383,1760287839848,-500.0,0.00014689,2]
[391009384,1760287839857,-151.0,0.00014689,2]
[391009385,1760287839867,-500.0,0.00014689,2]
[391009386,1760287839876,-500.0,0.00014689,2]
[391009387,1760287839886,-500.0,0.00014689,2]
[391009388,1760287839895,-500.0,0.00014689,2]
[391009389,1760287839905,-500.0,0.00014689,2]
[391009390,1760287839915,-500.0,0.00014689,2]